[Event "*** Titled Tuesday Blitz"]
[Site "Chess.com"]
[Date "2020.11.24"]
[Round "3"]
[White "ChronicUnhappiness"]
[Black "sergeikim"]
[Result "0-1"]
[WhiteElo "2366"]
[BlackElo "2542"]
[TimeControl "180+1"]
[EndTime "10:45:08 PST"]
[Termination "sergeikim won on time"]

1. c4 {[%clk 0:03:00.9]} 1... e5 {[%clk 0:02:59.3]} 2. Nc3 {[%clk 0:02:59.8]}
2... Nc6 {[%clk 0:02:59.7]} 3. Nf3 {[%clk 0:02:59.3]} 3... g6 {[%clk 0:02:59.7]}
4. d4 {[%clk 0:02:55.9]} 4... exd4 {[%clk 0:02:59.1]} 5. Nxd4 {[%clk 0:02:56.1]}
5... Bg7 {[%clk 0:02:59.6]} 6. Nxc6 {[%clk 0:02:56.2]} 6... bxc6 {[%clk
0:03:00.1]} 7. g3 {[%clk 0:02:56.6]} 7... Nf6 {[%clk 0:02:58.8]} 8. Bg2 {[%clk
0:02:56.7]} 8... O-O {[%clk 0:02:59.1]} 9. O-O {[%clk 0:02:57]} 9... Rb8 {[%clk
0:02:57.2]} 10. Qc2 {[%clk 0:02:56]} 10... Re8 {[%clk 0:02:56.1]} 11. Rd1 {[%clk
0:02:54.3]} 11... Bb7 {[%clk 0:02:55.8]} 12. b3 {[%clk 0:02:45.4]} 12... d6
{[%clk 0:02:54.2]} 13. Bb2 {[%clk 0:02:44.8]} 13... Qe7 {[%clk 0:02:52.8]} 14.
e3 {[%clk 0:02:44.5]} 14... h5 {[%clk 0:02:36]} 15. h3 {[%clk 0:02:33.6]} 15...
h4 {[%clk 0:02:32]} 16. g4 {[%clk 0:02:33.5]} 16... a5 {[%clk 0:02:26.1]} 17.
Rd2 {[%clk 0:02:32.7]} 17... Nd7 {[%clk 0:02:16.8]} 18. Na4 {[%clk 0:02:18.1]}
18... Ne5 {[%clk 0:02:13.4]} 19. f4 {[%clk 0:01:47.5]} 19... Nd7 {[%clk
0:01:51.6]} 20. Re1 {[%clk 0:01:46.1]} 20... Nf6 {[%clk 0:01:46.9]} 21. c5
{[%clk 0:01:35.7]} 21... d5 {[%clk 0:01:44]} 22. Bd4 {[%clk 0:01:31.2]} 22...
Ba6 {[%clk 0:01:38.5]} 23. Qb2 {[%clk 0:01:19.8]} 23... Rb4 {[%clk 0:01:28.9]}
24. Be5 {[%clk 0:01:01.4]} 24... Reb8 {[%clk 0:01:22.1]} 25. Rd4 {[%clk
0:00:49.7]} 25... R4b7 {[%clk 0:01:11.2]} 26. Qc3 {[%clk 0:00:41.9]} 26... Bb5
{[%clk 0:01:07]} 27. Nb2 {[%clk 0:00:34.8]} 27... Ne8 {[%clk 0:00:57.1]} 28.
Bxg7 {[%clk 0:00:32.9]} 28... Nxg7 {[%clk 0:00:56.4]} 29. e4 {[%clk 0:00:32.6]}
29... dxe4 {[%clk 0:00:49.1]} 30. Rexe4 {[%clk 0:00:28.9]} 30... Qf8 {[%clk
0:00:47.6]} 31. Re5 {[%clk 0:00:27.9]} 31... Ne6 {[%clk 0:00:42.5]} 32. Rd2
{[%clk 0:00:27.5]} 32... Nxf4 {[%clk 0:00:36.6]} 33. Qd4 {[%clk 0:00:13]} 33...
Nxg2 {[%clk 0:00:32.3]} 34. Kxg2 {[%clk 0:00:13.9]} 34... a4 {[%clk 0:00:29.4]}
35. bxa4 {[%clk 0:00:07.6]} 35... Ba6 {[%clk 0:00:29.2]} 36. Nc4 {[%clk
0:00:07.7]} 36... Rb4 {[%clk 0:00:28]} 37. Qc3 {[%clk 0:00:07.9]} 37... Rxc4
{[%clk 0:00:27.2]} 38. Qe3 {[%clk 0:00:07.2]} 38... Rxa4 {[%clk 0:00:23.6]} 39.
Rd7 {[%clk 0:00:05.5]} 39... Rxa2+ {[%clk 0:00:19.6]} 40. Kf3 {[%clk 0:00:05.3]}
40... Re2 {[%clk 0:00:18.2]} 41. Qf4 {[%clk 0:00:02.9]} 41... Rb3+ {[%clk
0:00:17]} 0-1

[Event "*** Titled Tuesday Blitz"]
[Site "Chess.com"]
[Date "2020.11.24"]
[Round "3"]
[White "RobPeresian"]
[Black "kingofthenil"]
[Result "0-1"]
[WhiteElo "2443"]
[BlackElo "2761"]
[TimeControl "180+1"]
[EndTime "10:45:13 PST"]
[Termination "kingofthenil won by resignation"]

1. Nf3 {[%clk 0:03:00.9]} 1... Nf6 {[%clk 0:02:59.7]} 2. c4 {[%clk 0:03:00.9]}
2... e6 {[%clk 0:03:00]} 3. Nc3 {[%clk 0:03:01]} 3... d5 {[%clk 0:03:00]} 4. d4
{[%clk 0:03:00.5]} 4... h6 {[%clk 0:03:00.6]} 5. Bf4 {[%clk 0:02:58.1]} 5... Bd6
{[%clk 0:02:43.3]} 6. e3 {[%clk 0:02:48.3]} 6... O-O {[%clk 0:02:42.1]} 7. Bd3
{[%clk 0:02:47.6]} 7... Bxf4 {[%clk 0:02:35.6]} 8. exf4 {[%clk 0:02:47.4]} 8...
dxc4 {[%clk 0:02:26.6]} 9. Bxc4 {[%clk 0:02:46.9]} 9... Bd7 {[%clk 0:02:27.2]}
10. Qe2 {[%clk 0:02:41.4]} 10... Bc6 {[%clk 0:02:26.8]} 11. Rd1 {[%clk
0:02:40.5]} 11... Bd5 {[%clk 0:02:26.6]} 12. Nxd5 {[%clk 0:02:35.3]} 12... exd5
{[%clk 0:02:26.6]} 13. Bd3 {[%clk 0:02:31.2]} 13... Re8 {[%clk 0:02:24.1]} 14.
Ne5 {[%clk 0:02:31]} 14... Nc6 {[%clk 0:02:25]} 15. Bb1 {[%clk 0:02:08]} 15...
Qd6 {[%clk 0:01:41.7]} 16. O-O {[%clk 0:02:01.8]} 16... Qb4 {[%clk 0:01:41.3]}
17. a3 {[%clk 0:01:46.5]} 17... Qb6 {[%clk 0:01:30.1]} 18. Qd2 {[%clk
0:01:32.6]} 18... Ne4 {[%clk 0:01:23.9]} 19. Bxe4 {[%clk 0:01:25.3]} 19... dxe4
{[%clk 0:01:24.8]} 20. Qe2 {[%clk 0:01:23.9]} 20... Rad8 {[%clk 0:01:22.1]} 21.
Qxe4 {[%clk 0:01:14.5]} 21... f6 {[%clk 0:01:22]} 22. d5 {[%clk 0:01:09.6]}
22... Nxe5 {[%clk 0:00:59.9]} 23. fxe5 {[%clk 0:01:10.5]} 23... Rxe5 {[%clk
0:01:00.8]} 24. Qg6 {[%clk 0:01:03.5]} 24... Qxb2 {[%clk 0:00:52.9]} 25. Rb1
{[%clk 0:01:03.3]} 25... Qxa3 {[%clk 0:00:49.7]} 26. Rxb7 {[%clk 0:01:03]} 26...
Qc5 {[%clk 0:00:48.4]} 27. h3 {[%clk 0:00:50.7]} 27... Rexd5 {[%clk 0:00:46.5]}
28. Ra1 {[%clk 0:00:44.2]} 28... Rd2 {[%clk 0:00:40.8]} 29. Qg3 {[%clk
0:00:39.6]} 29... Qd6 {[%clk 0:00:32.4]} 30. Qxd6 {[%clk 0:00:34.7]} 30... R8xd6
{[%clk 0:00:24.1]} 31. Raxa7 {[%clk 0:00:34.6]} 31... Rd1+ {[%clk 0:00:22.2]}
32. Kh2 {[%clk 0:00:34.4]} 32... Rd7 {[%clk 0:00:20.8]} 33. Rxc7 {[%clk
0:00:33.8]} 33... Rxc7 {[%clk 0:00:21.6]} 34. Rxc7 {[%clk 0:00:34.2]} 34... Kh7
{[%clk 0:00:22.5]} 35. f4 {[%clk 0:00:32.7]} 35... Rd2 {[%clk 0:00:15.1]} 36. f5
{[%clk 0:00:31]} 36... h5 {[%clk 0:00:15.4]} 37. Kg3 {[%clk 0:00:30.2]} 37...
Kh6 {[%clk 0:00:15]} 38. Kf3 {[%clk 0:00:22.6]} 38... h4 {[%clk 0:00:11.6]} 39.
Rc4 {[%clk 0:00:20.3]} 39... Kh5 {[%clk 0:00:07.3]} 40. Rg4 {[%clk 0:00:18.6]}
40... Rd7 {[%clk 0:00:07.3]} 41. Kf4 {[%clk 0:00:17.2]} 41... Rd4+ {[%clk
0:00:05.5]} 42. Kf3 {[%clk 0:00:16.9]} 42... Rxg4 {[%clk 0:00:05.1]} 43. hxg4+
{[%clk 0:00:16.5]} 43... Kg5 {[%clk 0:00:05.6]} 44. g3 {[%clk 0:00:16.3]} 44...
h3 {[%clk 0:00:05.9]} 45. Kf2 {[%clk 0:00:16.6]} 45... Kxg4 {[%clk 0:00:06.8]}
46. Kg1 {[%clk 0:00:17]} 46... Kxf5 {[%clk 0:00:07.4]} 47. Kh2 {[%clk
0:00:17.9]} 47... Kg4 {[%clk 0:00:08.3]} 48. Kg1 {[%clk 0:00:18.1]} 48... Kxg3
{[%clk 0:00:09.2]} 49. Kh1 {[%clk 0:00:19]} 49... f5 {[%clk 0:00:09.9]} 50. Kg1
{[%clk 0:00:19]} 50... f4 {[%clk 0:00:10.8]} 51. Kh1 {[%clk 0:00:19.9]} 51... f3
{[%clk 0:00:11.7]} 52. Kg1 {[%clk 0:00:20.6]} 52... f2+ {[%clk 0:00:10.6]} 53.
Kf1 {[%clk 0:00:19.5]} 53... h2 {[%clk 0:00:10.5]} 0-1

[Event "*** Titled Tuesday Blitz"]
[Site "Chess.com"]
[Date "2020.11.24"]
[Round "3"]
[White "Campelov"]
[Black "MartinMatthiesen"]
[Result "1-0"]
[WhiteElo "2191"]
[BlackElo "2399"]
[TimeControl "180+1"]
[EndTime "10:45:13 PST"]
[Termination "Campelov won by checkmate"]

1. e4 {[%clk 0:03:00.9]} 1... c5 {[%clk 0:02:59]} 2. Nf3 {[%clk 0:03:00.2]} 2...
d6 {[%clk 0:02:58.8]} 3. d4 {[%clk 0:03:00.6]} 3... cxd4 {[%clk 0:02:58.1]} 4.
Nxd4 {[%clk 0:03:01.5]} 4... Nf6 {[%clk 0:02:58.6]} 5. Nc3 {[%clk 0:03:02.4]}
5... a6 {[%clk 0:02:58.7]} 6. Rg1 {[%clk 0:03:02.3]} 6... g6 {[%clk 0:02:57.2]}
7. g4 {[%clk 0:03:01.7]} 7... Bg7 {[%clk 0:02:55.5]} 8. g5 {[%clk 0:03:01]} 8...
Nfd7 {[%clk 0:02:54.8]} 9. Be3 {[%clk 0:03:01.2]} 9... Nc6 {[%clk 0:02:54]} 10.
h4 {[%clk 0:03:00.4]} 10... Qc7 {[%clk 0:02:46.6]} 11. Qd2 {[%clk 0:02:54]}
11... Nde5 {[%clk 0:02:42.5]} 12. Be2 {[%clk 0:02:48.1]} 12... O-O {[%clk
0:01:30.6]} 13. f4 {[%clk 0:02:41.8]} 13... Nxd4 {[%clk 0:01:23.6]} 14. Bxd4
{[%clk 0:02:40.6]} 14... Nc4 {[%clk 0:01:23]} 15. Bxc4 {[%clk 0:02:36.3]} 15...
Qxc4 {[%clk 0:01:22.5]} 16. Bxg7 {[%clk 0:02:36.2]} 16... Kxg7 {[%clk
0:01:23.4]} 17. O-O-O {[%clk 0:02:36]} 17... Be6 {[%clk 0:01:19.5]} 18. h5
{[%clk 0:02:30.6]} 18... Rac8 {[%clk 0:01:12]} 19. Rdf1 {[%clk 0:01:45.7]} 19...
Rc5 {[%clk 0:01:04.6]} 20. f5 {[%clk 0:01:36.9]} 20... gxf5 {[%clk 0:01:03.9]}
21. g6 {[%clk 0:01:37.1]} 21... fxg6 {[%clk 0:00:52.1]} 22. hxg6 {[%clk
0:01:36.7]} 22... h6 {[%clk 0:00:52.1]} 23. Rh1 {[%clk 0:01:25.8]} 23... Rh8
{[%clk 0:00:49.4]} 24. exf5 {[%clk 0:01:13.8]} 24... Rxf5 {[%clk 0:00:48.6]} 25.
Re1 {[%clk 0:00:55.5]} 25... Rf6 {[%clk 0:00:39.8]} 26. b3 {[%clk 0:00:52.3]}
26... Qb4 {[%clk 0:00:22.2]} 27. Kb2 {[%clk 0:00:37]} 27... Rxg6 {[%clk
0:00:16.2]} 28. a3 {[%clk 0:00:36.6]} 28... Qa5 {[%clk 0:00:15.5]} 29. Qd4+
{[%clk 0:00:35.8]} 29... Kh7 {[%clk 0:00:14]} 30. Qd3 {[%clk 0:00:23.1]} 30...
Qg5 {[%clk 0:00:13.1]} 31. Rxe6 {[%clk 0:00:21.7]} 31... Rg8 {[%clk 0:00:10.6]}
32. Rhe1 {[%clk 0:00:18.9]} 32... Kh8 {[%clk 0:00:09.6]} 33. Rxe7 {[%clk
0:00:18.1]} 33... Qf6 {[%clk 0:00:09.2]} 34. Qe3 {[%clk 0:00:10.6]} 34... Rg3
{[%clk 0:00:06.9]} 35. Qd2 {[%clk 0:00:07.8]} 35... Rg2 {[%clk 0:00:06.6]} 36.
Qd3 {[%clk 0:00:06.3]} 36... R8g3 {[%clk 0:00:06.5]} 37. R7e3 {[%clk 0:00:05.9]}
37... Rg8 {[%clk 0:00:04.6]} 38. Re6 {[%clk 0:00:05]} 38... Qg5 {[%clk 0:00:04]}
39. Qd4+ {[%clk 0:00:04.5]} 39... Qg7 {[%clk 0:00:03.6]} 40. Rxh6# {[%clk
0:00:02.3]} 1-0

[Event "*** Titled Tuesday Blitz"]
[Site "Chess.com"]
[Date "2020.11.24"]
[Round "3"]
[White "Beca95"]
[Black "DoHoChess"]
[Result "1/2-1/2"]
[WhiteElo "2921"]
[BlackElo "2694"]
[TimeControl "180+1"]
[EndTime "10:45:14 PST"]
[Termination "Game drawn by agreement"]

1. d4 {[%clk 0:03:00.9]} 1... d5 {[%clk 0:02:59.2]} 2. c4 {[%clk 0:02:59.3]}
2... e6 {[%clk 0:02:59.3]} 3. Nf3 {[%clk 0:02:50.2]} 3... Nf6 {[%clk 0:02:58.5]}
4. Nc3 {[%clk 0:02:45.3]} 4... c5 {[%clk 0:02:57.9]} 5. cxd5 {[%clk 0:02:42.2]}
5... exd5 {[%clk 0:02:58]} 6. Bg5 {[%clk 0:02:38.4]} 6... Be6 {[%clk 0:02:57.3]}
7. Bxf6 {[%clk 0:02:26.2]} 7... Qxf6 {[%clk 0:02:57.2]} 8. e4 {[%clk 0:02:25.3]}
8... dxe4 {[%clk 0:02:50.3]} 9. Bb5+ {[%clk 0:02:10.4]} 9... Nc6 {[%clk
0:02:49.2]} 10. Nxe4 {[%clk 0:01:58.1]} 10... Qf5 {[%clk 0:02:43.4]} 11. Bd3
{[%clk 0:01:41.7]} 11... Qd5 {[%clk 0:02:19.3]} 12. O-O {[%clk 0:01:38.5]} 12...
cxd4 {[%clk 0:02:04.2]} 13. Neg5 {[%clk 0:01:37]} 13... Be7 {[%clk 0:01:28.1]}
14. Nxe6 {[%clk 0:01:35.9]} 14... fxe6 {[%clk 0:01:21.2]} 15. Re1 {[%clk
0:01:22.6]} 15... Bf6 {[%clk 0:00:55.7]} 16. Rc1 {[%clk 0:01:21]} 16... O-O
{[%clk 0:00:54.2]} 17. Bc4 {[%clk 0:01:04.1]} 17... Qh5 {[%clk 0:00:51.4]} 18.
Rxe6 {[%clk 0:01:00.8]} 18... Kh8 {[%clk 0:00:51.1]} 19. Bd3 {[%clk 0:00:58.2]}
19... Rae8 {[%clk 0:00:47.3]} 20. Rxe8 {[%clk 0:00:56.8]} 20... Rxe8 {[%clk
0:00:48.2]} 21. g3 {[%clk 0:00:50]} 21... Ne5 {[%clk 0:00:44.2]} 22. Nxe5 {[%clk
0:00:49.6]} 22... Qxd1+ {[%clk 0:00:41.6]} 23. Rxd1 {[%clk 0:00:49.4]} 23...
Rxe5 {[%clk 0:00:41.7]} 24. Rc1 {[%clk 0:00:49.2]} 24... g6 {[%clk 0:00:29.4]}
25. h4 {[%clk 0:00:42.4]} 25... Kg7 {[%clk 0:00:27.7]} 26. Kg2 {[%clk
0:00:42.5]} 26... b6 {[%clk 0:00:25]} 27. Rc6 {[%clk 0:00:40]} 27... Rc5 {[%clk
0:00:22.2]} 28. Rd6 {[%clk 0:00:36.7]} 28... Rc7 {[%clk 0:00:19.8]} 29. Kf3
{[%clk 0:00:33]} 29... Be5 {[%clk 0:00:17.4]} 30. Re6 {[%clk 0:00:32.2]} 30...
Bf6 {[%clk 0:00:18]} 31. Ke4 {[%clk 0:00:22.8]} 31... Kf7 {[%clk 0:00:18.3]} 32.
Kd5 {[%clk 0:00:20.5]} 32... Rd7+ {[%clk 0:00:18.2]} 33. Rd6 {[%clk 0:00:20.3]}
33... Rxd6+ {[%clk 0:00:18.6]} 34. Kxd6 {[%clk 0:00:20.6]} 34... Be7+ {[%clk
0:00:17.8]} 35. Kc6 {[%clk 0:00:20.4]} 35... Bc5 {[%clk 0:00:17.7]} 36. a3
{[%clk 0:00:18.4]} 36... a5 {[%clk 0:00:17.9]} 37. Kb5 {[%clk 0:00:14.9]} 37...
Kf6 {[%clk 0:00:15.7]} 38. b4 {[%clk 0:00:12.5]} 38... axb4 {[%clk 0:00:15.8]}
39. axb4 {[%clk 0:00:12.7]} 39... Bf8 {[%clk 0:00:16.4]} 40. Kc4 {[%clk
0:00:12.6]} 40... h6 {[%clk 0:00:13.5]} 41. b5 {[%clk 0:00:10.2]} 41... Bc5
{[%clk 0:00:13.3]} 42. Kd5 {[%clk 0:00:10.7]} 42... g5 {[%clk 0:00:13.6]} 43.
hxg5+ {[%clk 0:00:09.7]} 43... hxg5 {[%clk 0:00:14.5]} 44. Ke4 {[%clk
0:00:09.8]} 44... Ke6 {[%clk 0:00:13.4]} 45. Kf3 {[%clk 0:00:09]} 45... Kf6
{[%clk 0:00:13.6]} 46. Kg4 {[%clk 0:00:09.4]} 46... Bd6 {[%clk 0:00:14.1]} 47.
f4 {[%clk 0:00:09.1]} 47... gxf4 {[%clk 0:00:15]} 48. gxf4 {[%clk 0:00:09.9]}
48... Bc5 {[%clk 0:00:15.9]} 1/2-1/2

[Event "*** Titled Tuesday Blitz"]
[Site "Chess.com"]
[Date "2020.11.24"]
[Round "3"]
[White "Pogosian_Manvel"]
[Black "CheckThis4"]
[Result "0-1"]
[WhiteElo "2380"]
[BlackElo "2563"]
[TimeControl "180+1"]
[EndTime "10:45:14 PST"]
[Termination "CheckThis4 won by resignation"]

1. Nf3 {[%clk 0:02:50.7]} 1... d5 {[%clk 0:02:57.9]} 2. d4 {[%clk 0:02:50.1]}
2... Nf6 {[%clk 0:02:56.8]} 3. c4 {[%clk 0:02:50.7]} 3... e6 {[%clk 0:02:56.9]}
4. Nc3 {[%clk 0:02:47.3]} 4... Nbd7 {[%clk 0:02:53.6]} 5. e3 {[%clk 0:02:44.6]}
5... c6 {[%clk 0:02:47.4]} 6. Bd3 {[%clk 0:02:44.1]} 6... Bd6 {[%clk 0:02:33.9]}
7. O-O {[%clk 0:02:44.4]} 7... O-O {[%clk 0:02:33.9]} 8. e4 {[%clk 0:02:44.6]}
8... e5 {[%clk 0:02:34]} 9. cxd5 {[%clk 0:02:38]} 9... cxd5 {[%clk 0:02:34]} 10.
Nxd5 {[%clk 0:02:06.4]} 10... Nxd5 {[%clk 0:02:24]} 11. exd5 {[%clk 0:02:06.5]}
11... exd4 {[%clk 0:02:23.9]} 12. Nxd4 {[%clk 0:01:47.5]} 12... Ne5 {[%clk
0:02:11]} 13. Bf5 {[%clk 0:01:38.6]} 13... Qh4 {[%clk 0:02:03.9]} 14. f4 {[%clk
0:01:24.9]} 14... Ng4 {[%clk 0:01:51]} 15. h3 {[%clk 0:01:24.2]} 15... Bxf5
{[%clk 0:01:40.6]} 16. Nxf5 {[%clk 0:01:23.2]} 16... Bc5+ {[%clk 0:01:40.8]} 17.
Kh1 {[%clk 0:01:02]} 17... Nf2+ {[%clk 0:01:38.4]} 18. Rxf2 {[%clk 0:00:41.9]}
18... Qxf2 {[%clk 0:01:39.3]} 19. Bd2 {[%clk 0:00:36.9]} 19... Rfe8 {[%clk
0:01:31.3]} 20. Bc3 {[%clk 0:00:28.1]} 20... Re2 {[%clk 0:01:25.1]} 21. Qf1
{[%clk 0:00:20.4]} 21... g6 {[%clk 0:01:13.4]} 22. Nh6+ {[%clk 0:00:19.5]} 22...
Kf8 {[%clk 0:01:13.1]} 23. Ng4 {[%clk 0:00:19.9]} 23... Qxf1+ {[%clk 0:01:10.3]}
24. Rxf1 {[%clk 0:00:20.8]} 24... f5 {[%clk 0:00:58]} 25. Ne5 {[%clk 0:00:19.5]}
25... Rd8 {[%clk 0:00:53.9]} 26. Rd1 {[%clk 0:00:17.2]} 26... Be3 {[%clk
0:00:35.6]} 27. d6 {[%clk 0:00:15.4]} 27... Bxf4 {[%clk 0:00:32.6]} 28. Nc4
{[%clk 0:00:15]} 28... Rd7 {[%clk 0:00:25.8]} 29. Bb4 {[%clk 0:00:12.9]} 29...
Bg3 {[%clk 0:00:21.4]} 30. b3 {[%clk 0:00:12.5]} 30... Rxa2 {[%clk 0:00:19.8]}
31. Rc1 {[%clk 0:00:10.4]} 31... Re2 {[%clk 0:00:18.3]} 32. Na5 {[%clk 0:00:09]}
32... Rb2 {[%clk 0:00:14.9]} 33. Kg1 {[%clk 0:00:09.6]} 33... Bxd6 {[%clk
0:00:13.1]} 34. Rc8+ {[%clk 0:00:06.6]} 34... Kg7 {[%clk 0:00:12.2]} 35. Bxd6
{[%clk 0:00:06.7]} 35... Rxd6 {[%clk 0:00:12.3]} 36. Nc4 {[%clk 0:00:07.6]}
36... Rd1+ {[%clk 0:00:11.8]} 37. Kh2 {[%clk 0:00:08.5]} 37... Rbb1 {[%clk
0:00:12.6]} 38. Rc7+ {[%clk 0:00:07.7]} 38... Kf6 {[%clk 0:00:12.8]} 39. Ne3
{[%clk 0:00:07.7]} 39... Rd2 {[%clk 0:00:12.2]} 40. Kg3 {[%clk 0:00:08.6]} 40...
Rd3 {[%clk 0:00:11.6]} 41. Kf2 {[%clk 0:00:08.3]} 41... Rb2+ {[%clk 0:00:11.2]}
42. Kf3 {[%clk 0:00:08.6]} 42... Rbxb3 {[%clk 0:00:11.8]} 43. Rd7 {[%clk
0:00:06.9]} 43... Rxe3+ {[%clk 0:00:11.2]} 44. Kf2 {[%clk 0:00:02.9]} 44... Red3
{[%clk 0:00:12.1]} 0-1

[Event "*** Titled Tuesday Blitz"]
[Site "Chess.com"]
[Date "2020.11.24"]
[Round "3"]
[White "maxip32"]
[Black "LamaChampetre"]
[Result "0-1"]
[WhiteElo "2479"]
[BlackElo "2228"]
[TimeControl "180+1"]
[EndTime "10:45:16 PST"]
[Termination "LamaChampetre won on time"]

1. e4 {[%clk 0:03:00.9]} 1... c5 {[%clk 0:02:59.5]} 2. Nf3 {[%clk 0:03:00.8]}
2... g6 {[%clk 0:02:59.5]} 3. d4 {[%clk 0:03:00.5]} 3... cxd4 {[%clk 0:03:00.4]}
4. Nxd4 {[%clk 0:03:01.1]} 4... Nc6 {[%clk 0:03:00.6]} 5. c4 {[%clk 0:03:01.4]}
5... Nf6 {[%clk 0:02:57.9]} 6. Nc3 {[%clk 0:03:00.7]} 6... d6 {[%clk 0:02:53.7]}
7. f3 {[%clk 0:02:59.6]} 7... Nxd4 {[%clk 0:02:52.4]} 8. Qxd4 {[%clk 0:03:00.5]}
8... Bg7 {[%clk 0:02:52.6]} 9. Be3 {[%clk 0:03:00.9]} 9... O-O {[%clk
0:02:51.8]} 10. Qd2 {[%clk 0:03:01.4]} 10... Qa5 {[%clk 0:02:51.8]} 11. Rc1
{[%clk 0:02:58.9]} 11... Be6 {[%clk 0:02:51.4]} 12. Nd5 {[%clk 0:02:59]} 12...
Qxa2 {[%clk 0:02:43.6]} 13. Nxe7+ {[%clk 0:02:52.5]} 13... Kh8 {[%clk
0:02:43.5]} 14. Be2 {[%clk 0:02:34.1]} 14... Ng8 {[%clk 0:02:41.6]} 15. Nxg8
{[%clk 0:02:28]} 15... Kxg8 {[%clk 0:02:37.5]} 16. Bd4 {[%clk 0:02:26.4]} 16...
Bxd4 {[%clk 0:02:29.2]} 17. Qxd4 {[%clk 0:02:27.3]} 17... Qa5+ {[%clk
0:02:29.1]} 18. Qd2 {[%clk 0:02:22.2]} 18... Qc5 {[%clk 0:02:26.9]} 19. b4
{[%clk 0:02:20.3]} 19... Qb6 {[%clk 0:02:06.2]} 20. h4 {[%clk 0:02:09.4]} 20...
a5 {[%clk 0:01:52.9]} 21. bxa5 {[%clk 0:01:58.1]} 21... Rxa5 {[%clk 0:01:49.2]}
22. h5 {[%clk 0:01:49.1]} 22... Rfa8 {[%clk 0:01:05.8]} 23. hxg6 {[%clk
0:01:42.5]} 23... fxg6 {[%clk 0:00:59.3]} 24. Qh6 {[%clk 0:01:37]} 24... Qc7
{[%clk 0:00:29.5]} 25. Kf2 {[%clk 0:01:28]} 25... Ra2 {[%clk 0:00:27.2]} 26. Kf1
{[%clk 0:00:34.2]} 26... Rb2 {[%clk 0:00:26.1]} 27. Bd3 {[%clk 0:00:09]} 27...
Raa2 {[%clk 0:00:24.8]} 28. Rh2 {[%clk 0:00:09.1]} 28... Rf2+ {[%clk 0:00:24.2]}
29. Kg1 {[%clk 0:00:08.9]} 29... Rfd2 {[%clk 0:00:23.3]} 30. Bf1 {[%clk
0:00:08]} 30... Qc5+ {[%clk 0:00:22.6]} 31. Kh1 {[%clk 0:00:08.4]} 31... Qc7
{[%clk 0:00:22.4]} 32. Re1 {[%clk 0:00:05.4]} 32... Rf2 {[%clk 0:00:21.4]} 33.
Rc1 {[%clk 0:00:05.2]} 33... Qf7 {[%clk 0:00:19.8]} 34. c5 {[%clk 0:00:05]}
34... dxc5 {[%clk 0:00:18.8]} 35. Qg5 {[%clk 0:00:04.9]} 35... Ra8 {[%clk
0:00:15.2]} 36. Qxc5 {[%clk 0:00:04.4]} 36... Rfa2 {[%clk 0:00:14.9]} 37. Qd4
{[%clk 0:00:03.1]} 37... Qe7 {[%clk 0:00:12.4]} 38. Rb1 {[%clk 0:00:03.2]} 38...
Bf7 {[%clk 0:00:10.6]} 39. e5 {[%clk 0:00:02.8]} 39... Be6 {[%clk 0:00:10.3]}
40. Qe4 {[%clk 0:00:03.1]} 40... Bf5 {[%clk 0:00:09.2]} 41. Qc4+ {[%clk
0:00:01.8]} 41... Kg7 {[%clk 0:00:09]} 42. Rb6 {[%clk 0:00:01.4]} 42... Ra1
{[%clk 0:00:08.1]} 43. g4 {[%clk 0:00:01.3]} 43... Bd7 {[%clk 0:00:06.2]} 0-1

[Event "*** Titled Tuesday Blitz"]
[Site "Chess.com"]
[Date "2020.11.24"]
[Round "3"]
[White "Sueetin"]
[Black "chess94cu"]
[Result "0-1"]
[WhiteElo "2273"]
[BlackElo "2512"]
[TimeControl "180+1"]
[EndTime "10:45:17 PST"]
[Termination "chess94cu won on time"]

1. e4 {[%clk 0:03:00.9]} 1... d6 {[%clk 0:02:56.2]} 2. d4 {[%clk 0:02:59.9]}
2... Nf6 {[%clk 0:02:55.7]} 3. Nc3 {[%clk 0:03:00.1]} 3... Nbd7 {[%clk
0:02:56.1]} 4. Nf3 {[%clk 0:02:59.5]} 4... e5 {[%clk 0:02:55.9]} 5. Bc4 {[%clk
0:02:59.5]} 5... Be7 {[%clk 0:02:55.9]} 6. O-O {[%clk 0:02:59.2]} 6... O-O
{[%clk 0:02:55.5]} 7. a4 {[%clk 0:02:59.8]} 7... c6 {[%clk 0:02:55.4]} 8. b3
{[%clk 0:02:49.5]} 8... h6 {[%clk 0:02:48.9]} 9. Bb2 {[%clk 0:02:49.4]} 9... Qc7
{[%clk 0:02:48.3]} 10. Re1 {[%clk 0:02:47.7]} 10... Re8 {[%clk 0:02:45.2]} 11.
a5 {[%clk 0:02:46.8]} 11... Bf8 {[%clk 0:02:43.8]} 12. Bf1 {[%clk 0:02:29.5]}
12... exd4 {[%clk 0:02:32.2]} 13. Nxd4 {[%clk 0:02:20.2]} 13... Nc5 {[%clk
0:02:31.6]} 14. f3 {[%clk 0:02:11.8]} 14... g6 {[%clk 0:02:26.8]} 15. b4 {[%clk
0:02:07.2]} 15... Ncd7 {[%clk 0:02:26.6]} 16. Nce2 {[%clk 0:01:46.1]} 16... Ne5
{[%clk 0:02:24.2]} 17. Nf4 {[%clk 0:01:40.4]} 17... Bg7 {[%clk 0:02:21.9]} 18.
c4 {[%clk 0:01:37.9]} 18... Bd7 {[%clk 0:02:20.4]} 19. Rc1 {[%clk 0:01:35.7]}
19... Rad8 {[%clk 0:02:19.1]} 20. Qc2 {[%clk 0:01:28.7]} 20... Bc8 {[%clk
0:02:18.9]} 21. Qb1 {[%clk 0:01:26.7]} 21... b6 {[%clk 0:02:15.3]} 22. axb6
{[%clk 0:01:24.3]} 22... axb6 {[%clk 0:02:12.8]} 23. b5 {[%clk 0:01:23]} 23...
c5 {[%clk 0:02:04.9]} 24. Nde2 {[%clk 0:01:23.1]} 24... g5 {[%clk 0:01:44.4]}
25. Nd5 {[%clk 0:01:18.4]} 25... Nxd5 {[%clk 0:01:44]} 26. exd5 {[%clk
0:01:19.3]} 26... f5 {[%clk 0:01:36.5]} 27. Ng3 {[%clk 0:01:19.3]} 27... Qf7
{[%clk 0:01:35.1]} 28. Qc2 {[%clk 0:01:12]} 28... h5 {[%clk 0:01:34.7]} 29. Ra1
{[%clk 0:01:09.5]} 29... h4 {[%clk 0:01:34.3]} 30. Ne2 {[%clk 0:01:04.9]} 30...
f4 {[%clk 0:01:31]} 31. Nc3 {[%clk 0:01:01.3]} 31... g4 {[%clk 0:01:18.6]} 32.
fxg4 {[%clk 0:00:53.3]} 32... Nxg4 {[%clk 0:01:18.1]} 33. Ne4 {[%clk 0:00:43.7]}
33... Bf5 {[%clk 0:01:11.6]} 34. Bd3 {[%clk 0:00:22.2]} 34... Bxb2 {[%clk
0:00:36.3]} 35. Qxb2 {[%clk 0:00:21.4]} 35... Qg6 {[%clk 0:00:32.9]} 36. Ra7
{[%clk 0:00:17.1]} 36... f3 {[%clk 0:00:31.6]} 37. h3 {[%clk 0:00:11]} 37...
Bxe4 {[%clk 0:00:25.4]} 38. Bxe4 {[%clk 0:00:05.9]} 38... f2+ {[%clk 0:00:25.5]}
39. Qxf2 {[%clk 0:00:02.2]} 39... Rxe4 {[%clk 0:00:14.8]} 40. Rxe4 {[%clk
0:00:01.1]} 40... Nxf2 {[%clk 0:00:14.5]} 0-1